bitfinex-derivatives/quotes_BTCF0:USTF0_20241009
["timestamp","ask_amount","ask_price","bid_price","bid_amount"]
[1728472686495,0.29791309,62225.0,62224.0,0.013]
[1728472686695,0.32891309,62225.0,62224.0,0.013]
[1728472687087,0.43891309,62225.0,62224.0,0.013]
[1728472687895,0.79971309,62225.0,62224.0,0.013]
[1728472690093,0.6222,62225.0,62224.0,0.013]
[1728472693299,0.2614,62225.0,62224.0,0.013]
[1728472693511,0.6222,62225.0,62224.0,0.013]
[1728472693908,0.2614,62225.0,62224.0,0.013]
[1728472694507,0.6222,62225.0,62224.0,0.013]
[1728472694708,0.5022,62225.0,62224.0,0.013]
[1728472694909,0.5912,62225.0,62224.0,0.013]
[1728472702417,0.5912,62225.0,62224.0,0.06109475]
[1728472703118,0.5912,62225.0,62224.0,0.013]
[1728472703318,0.5912,62225.0,62224.0,0.06109475]
[1728472703908,0.2304,62225.0,62224.0,0.06109475]
[1728472704112,0.5912,62225.0,62224.0,0.06109475]
[1728472704724,0.4712,62225.0,62224.0,0.06109475]
[1728472704920,0.5912,62225.0,62224.0,0.06109475]
[1728472705119,0.71102977,62225.0,62224.0,0.013]
[1728472711521,0.71102861,62225.0,62224.0,0.013]
[1728472711916,0.35022861,62225.0,62224.0,0.013]
[1728472712117,0.48102861,62225.0,62224.0,0.013]
[1728472712322,0.48102861,62225.0,62224.0,0.0432]
[1728472713120,0.3612,62225.0,62224.0,0.16576537]
[1728472713529,0.32096203,62225.0,62224.0,0.16576537]
[1728472714824,0.32096203,62225.0,62224.0,0.28576537]
[1728472715026,0.32096203,62225.0,62224.0,0.16576537]
[1728472715931,0.44096203,62225.0,62224.0,0.16576537]
[1728472716227,0.44096203,62225.0,62224.0,0.16576606]
[1728472716530,0.44096203,62225.0,62224.0,0.16576761]
[1728472720223,0.73760696,62225.0,62224.0,0.013]
[1728472720428,0.79529363,62225.0,62224.0,0.013]
[1728472720621,0.61847163,62225.0,62224.0,0.013]
[1728472721624,0.61847433,62225.0,62224.0,0.013]
[1728472722026,0.56078766,62225.0,62224.0,0.013]
[1728472722425,0.73847577,62225.0,62224.0,0.013]
[1728472722631,0.85766947,62225.0,62224.0,0.013]
[1728472723221,0.68078766,62225.0,62224.0,0.013]
[1728472724226,0.89750744,62225.0,62224.0,0.013]
[1728472725260,0.72062563,62225.0,62224.0,0.013]
[1728472725737,0.35982563,62225.0,62224.0,0.013]
[1728472725928,0.72062563,62225.0,62224.0,0.013]
[1728472726932,0.88143493,62225.0,62224.0,0.013]
[1728472727134,0.72062563,62225.0,62224.0,0.013]
[1728472727332,0.6008,62225.0,62224.0,0.013]
[1728472729523,0.4808,62225.0,62224.0,0.013]
[1728472729728,0.6008,62225.0,62223.0,0.06456949]
[1728472729923,0.0008,62224.0,62221.0,0.01608]
[1728472730129,0.1204,62222.0,62221.0,0.01608]
[1728472730341,0.2204,62222.0,62221.0,0.01608]
[1728472731634,0.2214,62222.0,62221.0,0.01608]
[1728472733032,0.2234,62222.0,62221.0,0.01608]
[1728472734538,0.25175038,62222.0,62221.0,0.01608]
[1728472735353,0.32221231,62222.0,62221.0,0.01608]
[1728472735734,0.99221231,62222.0,62221.0,0.01608]
[1728472735939,0.99221231,62222.0,62219.0,0.0004]
[1728472736140,0.3612,62220.0,62219.0,0.0004]
[1728472736336,0.54166193,62220.0,62219.0,0.0004]
[1728472737642,0.54966193,62220.0,62219.0,0.0014]
[1728472738747,0.55666193,62220.0,62219.0,0.0024]
[1728472739142,0.60603531,62220.0,62219.0,0.0024]
[1728472740640,0.76684758,62220.0,62219.0,0.0024]
[1728472741246,0.40604758,62220.0,62219.0,0.0024]
[1728472741542,0.60603531,62220.0,62219.0,0.0024]
[1728472742246,0.4862,62220.0,62219.0,0.0024]
[1728472743654,0.4862,62220.0,62219.0,0.0505043]
[1728472743944,1.1562,62220.0,62219.0,0.0505043]
[1728472746648,1.1562,62220.0,62212.0,0.08021186]
[1728472746860,1.1562,62220.0,62209.0,0.0043]
[1728472746861,0.3608,62213.0,62211.0,0.0004]
[1728472747148,0.0004,62212.0,62211.0,0.0004]
[1728472748750,0.0034,62212.0,62211.0,0.0004]
[1728472749553,0.0064,62212.0,62211.0,0.0004]
[1728472751043,0.1264,62212.0,62211.0,0.0004]
[1728472752143,0.1264,62212.0,62208.0,0.0004]
[1728472752354,0.1204,62209.0,62208.0,0.0004]
[1728472752852,0.2304,62209.0,62208.0,0.0004]
[1728472753443,0.2304,62209.0,62205.0,0.0324]
[1728472753638,0.4812,62206.0,62205.0,0.0324]
[1728472754851,0.4812,62206.0,62205.0,0.0354]
[1728472756154,0.4812,62206.0,62205.0,0.0384]
[1728472756949,0.5812,62206.0,62205.0,0.0384]
[1728472757353,0.61227722,62206.0,62205.0,0.0384]
[1728472760049,0.25147722,62206.0,62205.0,0.0384]
[1728472760255,0.61227722,62206.0,62205.0,0.0384]
[1728472764960,0.61227705,62206.0,62205.0,0.0384]
[1728472765362,0.5812,62206.0,62205.0,0.0384]
[1728472767166,0.2204,62206.0,62205.0,0.0384]
[1728472767380,0.5812,62206.0,62205.0,0.0384]
[1728472769368,0.5812,62206.0,62205.0,0.11861186]
[1728472770165,0.5812,62206.0,62205.0,0.0384]
[1728472771367,0.5812,62206.0,62205.0,0.11861186]
[1728472772260,0.65167615,62206.0,62205.0,0.0384]
[1728472776663,0.61227773,62206.0,62205.0,0.0384]
[1728472776864,0.5812,62206.0,62205.0,0.0384]
[1728472777369,0.65167617,62206.0,62205.0,0.0384]
[1728472780069,0.65167617,62206.0,62203.0,0.00281127]
[1728472780268,0.0004,62204.0,62203.0,0.00281127]
[1728472780464,0.0004,62204.0,62203.0,0.27178341]
[1728472780673,0.53066763,62206.0,62203.0,0.27178341]
[1728472780873,0.63966763,62206.0,62204.0,0.26897036]
[1728472781178,0.49499803,62206.0,62205.0,0.26937036]
[1728472782872,0.49499803,62206.0,62205.0,0.123004]
[1728472783375,0.49499803,62206.0,62205.0,0.128004]
[1728472784577,0.4712,62206.0,62205.0,0.128004]
[1728472784881,0.3612,62206.0,62205.0,0.39361602]
[1728472785773,0.3612,62206.0,62205.0,0.39294438]
[1728472785967,0.3612,62206.0,62205.0,0.27294438]
[1728472786774,0.3612,62206.0,62205.0,0.39294438]
[1728472787673,0.3612,62206.0,62205.0,0.24745705]
[1728472787880,0.3612,62206.0,62205.0,0.12745705]
[1728472789275,0.3612,62206.0,62205.0,0.22374743]
[1728472789470,0.0004,62206.0,62205.0,0.22374743]
[1728472789674,0.3612,62206.0,62205.0,0.22374743]
[1728472790183,0.3612,62206.0,62205.0,0.12745705]
[1728472790778,0.3612,62206.0,62205.0,0.1273843]
[1728472793981,0.3612,62206.0,62205.0,0.1273843]
[1728472795580,0.43167365,62206.0,62205.0,0.0054]
[1728472797589,0.07087365,62206.0,62205.0,0.0054]
[1728472797886,0.43167365,62206.0,62205.0,0.0054]
[1728472798101,0.07087365,62206.0,62205.0,0.0054]
[1728472798389,0.43167365,62206.0,62205.0,0.0054]
[1728472800812,0.55167365,62206.0,62205.0,0.0054]
[1728472801293,0.60105565,62206.0,62205.0,0.0054]
[1728472802584,0.4812,62206.0,62205.0,0.27289957]
[1728472808497,0.3612,62206.0,62205.0,0.27289957]
[1728472808892,0.4812,62206.0,62205.0,0.27289957]
[1728472809387,0.4812,62206.0,62205.0,0.2729102]
[1728472809582,0.4812,62206.0,62205.0,0.12744146]
[1728472810684,0.55167662,62206.0,62205.0,0.0054]
[1728472811493,0.19087662,62206.0,62205.0,0.0054]
[1728472811700,0.55167662,62206.0,62205.0,0.0054]
[1728472812286,0.19087662,62206.0,62205.0,0.0054]
[1728472812689,0.55167662,62206.0,62205.0,0.0054]
[1728472815593,0.60106019,62206.0,62205.0,0.0054]
[1728472815793,0.74584749,62206.0,62205.0,0.0054]
[1728472815990,0.69646392,62206.0,62205.0,0.0054]
[1728472816194,0.55167662,62206.0,62205.0,0.0054]
[1728472816393,0.60106019,62206.0,62205.0,0.0054]
[1728472817598,0.4812,62206.0,62205.0,0.0054]
[1728472820700,0.5812,62206.0,62205.0,0.0054]
[1728472822993,0.5812,62206.0,62205.0,0.0034]
[1728472823190,0.5812,62206.0,62205.0,0.0014]
[1728472823631,0.2204,62206.0,62205.0,0.0014]
[1728472823802,0.5812,62206.0,62205.0,0.0014]
[1728472824607,0.5812,62206.0,62201.0,0.0004]
[1728472824911,0.1204,62202.0,62201.0,0.0004]
[1728472825201,0.2404,62202.0,62201.0,0.0004]
[1728472825700,0.36027385,62202.0,62201.0,0.0004]
[1728472825897,0.52114863,62202.0,62201.0,0.0004]
[1728472826415,0.52114863,62202.0,62197.0,0.0004]
[1728472826416,0.36027385,62202.0,62197.0,0.0004]
[1728472826599,0.4808,62198.0,62197.0,0.0004]
[1728472826797,0.55168465,62198.0,62197.0,0.0004]
[1728472827698,0.55168465,62198.0,62197.0,0.0054]
[1728472827901,0.55168465,62198.0,62197.0,0.0094]
[1728472828997,0.55168664,62198.0,62197.0,0.0094]
[1728472829399,0.19088664,62198.0,62197.0,0.0094]
[1728472829600,0.55168664,62198.0,62197.0,0.0094]
[1728472830306,0.60107725,62198.0,62197.0,0.0094]
[1728472831403,0.74577722,62198.0,62197.0,0.0094]
[1728472831603,0.86277722,62198.0,62195.0,0.0008]
[1728472831804,0.11987725,62197.0,62195.0,0.0008]
[1728472832003,0.81509997,62196.0,62195.0,0.0008]
[1728472832205,0.91027725,62196.0,62195.0,0.0008]
[1728472832606,0.7904,62196.0,62195.0,0.12315823]
[1728472832799,0.12,62196.0,62195.0,0.12315823]
[1728472833642,0.125,62196.0,62195.0,0.12315823]
[1728472833816,0.755,62196.0,62195.0,0.12315823]
[1728472834726,0.76,62196.0,62195.0,0.12315823]
[1728472836232,0.76,62196.0,62195.0,0.20333828]
[1728472836429,0.76,62196.0,62195.0,0.0008]
[1728472836633,0.76,62196.0,62195.0,0.06415817]
[1728472836634,1.1208,62196.0,62195.0,0.06415817]
[1728472836945,1.1208,62196.0,62194.0,0.06415817]
[1728472836946,1.2408,62196.0,62194.0,0.06415817]
[1728472837119,0.1204,62195.0,62194.0,0.06415817]
[1728472837315,0.1204,62195.0,62193.0,0.06415817]
[1728472837316,0.1507,62195.0,62193.0,0.06415817]
[1728472837531,0.1204,62194.0,62192.0,0.06415817]
[1728472837716,0.1204,62193.0,62192.0,0.06415817]
[1728472837920,0.2204,62193.0,62184.0,0.0008]
[1728472838129,0.2204,62193.0,62175.0,0.0008]
[1728472838130,0.842,62185.0,62175.0,0.0008]
[1728472838424,0.4812,62176.0,62175.0,0.0008]
[1728472845526,0.50872951,62176.0,62175.0,0.0008]
[1728472848236,0.62872951,62176.0,62175.0,0.0008]
[1728472848933,0.26792951,62176.0,62175.0,0.0008]
[1728472849130,0.62872951,62176.0,62175.0,0.0008]
[1728472849342,1.25872951,62176.0,62175.0,0.0008]
[1728472849731,1.25872951,62176.0,62170.0,0.032]
[1728472850046,0.4812,62171.0,62170.0,0.03192]
[1728472852041,0.4812,62171.0,62170.0,0.04192]
[1728472852533,0.4812,62171.0,62170.0,0.03692]
[1728472852741,0.4822,62171.0,62170.0,0.03692]
[1728472852947,0.4832,62171.0,62170.0,0.04192]
[1728472855636,0.42681736,62171.0,62170.0,0.04192]
[1728472856144,0.1224,62171.0,62170.0,0.04192]
[1728472862338,0.1224,62171.0,62170.0,0.16238586]
[1728472862538,0.0024,62171.0,62170.0,0.16238586]
[1728472863043,0.3133,62172.0,62170.0,0.16278586]
[1728472863341,0.3133,62172.0,62171.0,0.33685272]
[1728472863849,0.3133,62172.0,62171.0,0.1204]
[1728472864655,0.3143,62172.0,62171.0,0.1204]
[1728472865148,0.002,62172.0,62171.0,0.1204]
[1728472865380,0.001,62172.0,62171.0,0.1204]
[1728472865650,0.001,62172.0,62171.0,0.1304]
[1728472867054,0.121,62172.0,62171.0,0.0104]
[1728472869755,0.121,62172.0,62171.0,0.0004]
[1728472870754,0.121,62172.0,62171.0,0.26514126]
[1728472871842,0.121,62172.0,62171.0,0.12117823]
[1728472872389,0.121,62172.0,62171.0,0.12129726]
[1728472872433,0.231,62172.0,62171.0,0.12129726]
[1728472873347,0.231,62172.0,62171.0,0.21777035]
[1728472873553,0.231,62172.0,62171.0,0.12129726]
[1728472874309,0.231,62172.0,62171.0,0.20168772]
[1728472874311,0.231,62172.0,62171.0,0.08079046]
[1728472874651,0.231,62172.0,62171.0,0.0004]
[1728472874855,0.238,62172.0,62169.0,0.08083046]
[1728472875054,0.4812,62170.0,62165.0,0.09647309]
[1728472875249,0.4812,62170.0,62157.0,0.36321304]
[1728472875250,0.1204,62166.0,62164.0,0.09647309]
[1728472875464,0.2304,62166.0,62165.0,0.1211804]
[1728472876456,0.2304,62166.0,62158.0,0.10017309]
[1728472876665,0.4812,62159.0,62157.0,0.00241304]
[1728472876964,0.0004,62158.0,62157.0,0.00241304]
[1728472877147,0.6925,62158.0,62157.0,0.00241304]
[1728472877760,0.0621,62158.0,62157.0,0.00241304]
[1728472878061,0.0621,62158.0,62157.0,0.00281304]
[1728472878656,0.6621,62158.0,62157.0,0.00281304]
[1728472878959,0.6721,62158.0,62157.0,0.00281304]
[1728472879156,0.6831,62158.0,62157.0,0.00281304]
[1728472879354,0.6831,62158.0,62157.0,0.00273304]
[1728472883568,0.7931,62158.0,62157.0,0.00273304]
[1728472883765,0.7931,62158.0,62151.0,0.01609]
[1728472883964,0.1204,62152.0,62151.0,0.01609]
[1728472885299,0.1244,62152.0,62151.0,0.01609]
[1728472885761,0.07200031,62152.0,62151.0,0.01609]
[1728472891168,0.18200031,62152.0,62151.0,0.01609]
[1728472891369,0.18200031,62152.0,62144.0,0.12967309]
[1728472891674,0.18200031,62152.0,62145.0,0.11989232]
[1728472891675,0.12,62148.0,62145.0,0.11989232]
[1728472891868,0.12,62148.0,62146.0,0.11989232]
[1728472892174,0.12,62148.0,62144.0,0.06062969]
[1728472892368,0.12,62148.0,62145.0,0.11994553]
[1728472892574,0.12,62148.0,62144.0,0.06062969]
[1728472892877,0.12,62148.0,62146.0,0.04807478]
[1728472894380,0.12,62148.0,62146.0,0.04907478]
[1728472895270,0.12,62148.0,62147.0,0.04807478]
[1728472897280,0.12,62148.0,62144.0,0.06062969]
[1728472897480,0.0004,62145.0,62144.0,0.06062969]
[1728472897875,0.0004,62145.0,62144.0,0.18062969]
[1728472898581,0.0004,62145.0,62144.0,0.18362969]
[1728472900978,0.0004,62145.0,62144.0,0.4002636]
[1728472901186,0.0004,62145.0,62144.0,0.30379051]
[1728472902188,0.0004,62145.0,62144.0,0.44717399]
[1728472906287,0.0004,62145.0,62144.0,0.44759985]
[1728472908181,0.12,62148.0,62144.0,0.72630764]
[1728472908378,0.12,62148.0,62145.0,0.26397016]
[1728472908688,0.12,62148.0,62147.0,0.0004]
[1728472908888,0.12,62148.0,62147.0,0.26437016]
[1728472913397,0.3612,62152.0,62147.0,0.26437016]
[1728472913398,0.12,62151.0,62147.0,0.26437016]
[1728472913599,0.22,62151.0,62150.0,0.0004]
[1728472913895,0.22,62151.0,62150.0,0.12082645]
[1728472915098,0.22,62151.0,62150.0,0.26439133]
[1728472915902,0.1,62151.0,62150.0,0.20130426]
[1728472916095,0.1,62151.0,62150.0,0.20132316]
[1728472916298,0.006,62151.0,62150.0,0.32132316]
[1728472916594,0.006,62151.0,62150.0,0.38415766]
[1728472919192,0.006,62151.0,62150.0,0.24084535]
[1728472920599,0.006,62151.0,62150.0,0.24039739]
[1728472922500,0.006,62151.0,62150.0,0.3368668]
[1728472922696,0.0037,62157.0,62150.0,0.3368668]
[1728472922897,0.601,62158.0,62156.0,0.09686941]
[1728472923096,0.6,62158.0,62157.0,0.12039739]
[1728472924295,0.6,62158.0,62157.0,0.0004]
[1728472924496,0.6,62158.0,62157.0,0.12033634]
[1728472925612,0.62,62158.0,62157.0,0.12133634]
[1728472929501,0.62,62158.0,62157.0,0.33778759]
[1728472930000,0.62,62158.0,62157.0,0.24131818]
[1728472930593,0.62,62158.0,62157.0,0.33772233]
[1728472930900,0.62,62158.0,62157.0,0.24131818]
[1728472931199,0.56360578,62158.0,62157.0,0.38414354]
[1728472931389,0.02,62158.0,62157.0,0.38414354]
[1728472932192,0.56,62158.0,62157.0,0.38414354]
[1728472932589,0.56,62158.0,62157.0,0.24131818]
[1728472932799,0.56,62158.0,62157.0,0.41231162]
[1728472937898,0.56,62158.0,62157.0,0.19830815]
[1728472938602,0.56,62158.0,62157.0,0.198306]
[1728472938805,0.56,62158.0,62157.0,0.0014]
[1728472939204,0.5929,62158.0,62157.0,0.0014]
[1728472939510,0.6233,62158.0,62157.0,0.0014]
[1728472946016,0.6233,62158.0,62157.0,0.21738787]
[1728472946318,0.6233,62158.0,62157.0,0.12102014]
[1728472948510,0.56,62158.0,62157.0,0.26360924]
[1728472949413,0.0004,62159.0,62157.0,0.26360924]
[1728472949608,0.0004,62159.0,62158.0,0.38260924]
[1728472949910,0.0004,62159.0,62158.0,0.49467353]
[1728472950413,0.5104,62159.0,62158.0,0.49467353]
[1728472950715,0.5204,62159.0,62158.0,0.38260924]
[1728472950917,0.5204,62159.0,62158.0,0.49467353]
[1728472951108,0.5294,62159.0,62158.0,0.49467353]
[1728472951411,0.5294,62159.0,62158.0,0.6593414]
[1728472951711,0.5304,62159.0,62158.0,0.38360924]
[1728472951914,0.5304,62159.0,62158.0,0.49567353]
[1728472952316,0.5304,62159.0,62158.0,0.49667353]
[1728472953118,0.5304,62159.0,62158.0,0.24202014]
[1728472953509,0.5304,62159.0,62158.0,0.32239518]
[1728472953910,0.5304,62159.0,62158.0,0.32171647]
[1728472956515,0.0204,62159.0,62158.0,0.32171647]
[1728472957529,0.0204,62159.0,62158.0,0.24134143]
[1728472958720,0.0037,62168.0,62162.0,0.01609]
[1728472958919,0.00112001,62181.0,62169.0,0.0004]
[1728472959108,0.0312,62182.0,62175.0,0.4812]
[1728472959314,0.0312,62182.0,62175.0,0.54546503]
[1728472959512,0.0312,62182.0,62175.0,0.4812]
[1728472960120,0.12,62178.0,62175.0,0.3612]
[1728472961108,0.12,62178.0,62175.0,0.61994067]
[1728472961309,0.0312,62182.0,62175.0,0.61994067]
[1728472961511,0.12,62178.0,62176.0,0.21427676]
[1728472961722,0.12,62178.0,62177.0,0.11804069]
[1728472962323,0.12,62178.0,62177.0,0.11757036]
[1728472963314,0.12,62178.0,62176.0,0.09623607]
[1728472963514,0.0004,62177.0,62176.0,0.09623607]
[1728472964318,0.0328,62177.0,62176.0,0.09623607]
[1728472964721,0.0338,62177.0,62176.0,0.09623607]
[1728472965026,0.0338,62177.0,62175.0,0.09703607]
[1728472965236,0.1204,62176.0,62175.0,0.09703607]
[1728472967219,0.1204,62176.0,62175.0,0.10703607]
[1728472967424,0.1204,62176.0,62175.0,0.0208]
[1728472980338,0.14802103,62176.0,62175.0,0.0208]
[1728472980524,0.14802103,62176.0,62175.0,0.1009099]
[1728472981032,0.14802103,62176.0,62175.0,0.0208]
[1728472981233,0.61882103,62176.0,62169.0,0.09654514]
[1728472981430,0.49882103,62176.0,62171.0,0.08017393]
[1728472981640,0.49882103,62176.0,62170.0,0.11772328]
[1728472981641,0.12,62172.0,62169.0,0.0004]
[1728472981829,0.3612,62170.0,62169.0,0.0004]
[1728472982031,0.3616,62170.0,62169.0,0.11827289]
[1728472982342,0.3616,62170.0,62169.0,0.0004]
[1728472983168,0.3616,62170.0,62169.0,0.0034]
[1728472983169,0.39269719,62170.0,62169.0,0.0034]
[1728472983534,0.03189719,62170.0,62169.0,0.0034]
[1728472983751,0.39269719,62170.0,62169.0,0.0034]
[1728472983946,0.39269719,62170.0,62169.0,0.0044]
[1728472983947,0.43912042,62170.0,62169.0,0.0044]
[1728472984243,0.43912228,62170.0,62169.0,0.0044]
[1728472984644,0.44612228,62170.0,62169.0,0.0024]
[1728472986636,0.49553841,62170.0,62169.0,0.0024]
[1728472988228,0.44612228,62170.0,62169.0,0.0024]
[1728472988742,0.49553729,62170.0,62169.0,0.0024]
[1728472989043,0.44612228,62170.0,62169.0,0.0024]
[1728472989541,0.08532228,62170.0,62169.0,0.1224]
[1728472989955,0.04589807,62170.0,62169.0,0.1224]
[1728472990330,0.04589807,62170.0,62169.0,0.4832]
[1728472991335,0.0148,62170.0,62169.0,0.59984106]
[1728472993544,0.0148,62170.0,62169.0,0.6274992]
[1728472993935,0.0148,62170.0,62169.0,0.62749107]
[1728472998348,0.0148,62170.0,62169.0,0.51085814]
[1728473001546,0.0148,62170.0,62169.0,0.4832]
[1728473006457,0.0458946,62170.0,62169.0,0.4832]
[1728473006646,0.0148,62170.0,62169.0,0.4832]
[1728473006843,0.0458946,62170.0,62169.0,0.4832]
[1728473007069,0.08531441,62170.0,62169.0,0.4832]
[1728473009251,0.08531441,62170.0,62169.0,0.5148]
[1728473011752,0.0148,62170.0,62169.0,0.5148]
[1728473012362,0.13472053,62170.0,62169.0,0.3948]
[1728473012554,0.29559531,62170.0,62169.0,0.5148]
[1728473013056,0.13472053,62170.0,62169.0,0.5148]
[1728473013244,0.0148,62170.0,62169.0,0.56292366]
[1728473013452,0.0148,62170.0,62169.0,0.5148]
[1728473013760,0.0148,62170.0,62169.0,0.5629316]
[1728473013957,0.0148,62170.0,62169.0,0.5313316]
[1728473014557,0.0148,62170.0,62169.0,0.4832]
[1728473017061,0.0148,62170.0,62169.0,0.3632]
[1728473017263,0.0148,62170.0,62169.0,0.4832]
[1728473027580,0.0148,62170.0,62169.0,0.12]
[1728473028258,0.085309,62170.0,62169.0,0.12]
[1728473028764,0.085309,62170.0,62169.0,1.20456]
[1728473028965,0.0041,62176.0,62169.0,1.20496]
[1728473029169,0.0004,62176.0,62175.0,0.0004]
[1728473029569,0.0004,62176.0,62175.0,1.08292]
[1728473030965,0.0014,62176.0,62175.0,1.08592]
[1728473031170,0.0054,62176.0,62175.0,1.08592]
[1728473031674,0.0014,62176.0,62175.0,1.08592]
[1728473031874,0.0024,62176.0,62175.0,1.09092]
[1728473033466,0.0024,62176.0,62175.0,1.21092]
[1728473033670,0.0024,62176.0,62175.0,0.61092]
[1728473034779,0.0024,62176.0,62175.0,0.63960213]
[1728473035171,0.0024,62176.0,62175.0,1.00040213]
[1728473035966,0.0024,62176.0,62175.0,0.51788213]
[1728473042277,0.0024,62176.0,62175.0,0.39788213]
[1728473042479,0.0024,62176.0,62175.0,0.51788213]
[1728473043076,0.0024,62176.0,62175.0,0.15708213]
[1728473043489,0.04181325,62176.0,62175.0,0.15708213]
[1728473043782,0.12230451,62176.0,62175.0,0.15708213]
[1728473045377,0.07290268,62176.0,62175.0,0.0084]
[1728473045577,0.26685602,62176.0,62175.0,0.0084]
[1728473045777,0.12230701,62176.0,62175.0,0.0084]
[1728473045977,0.12230701,62176.0,62175.0,0.00551875]
[1728473047079,0.12130701,62176.0,62175.0,0.00451875]
[1728473047286,0.12030701,62176.0,62175.0,0.002]
[1728473047586,0.12030701,62176.0,62175.0,0.006]
[1728473047978,0.12030701,62176.0,62175.0,0.007]
[1728473048879,0.12030701,62176.0,62175.0,0.005]
[1728473049073,0.12030701,62176.0,62175.0,0.01]
[1728473050179,0.12030701,62176.0,62169.0,0.0004]
[1728473050180,0.29726927,62176.0,62169.0,0.0004]
[1728473050383,0.4812,62170.0,62169.0,0.0004]
[1728473050583,0.48110701,62170.0,62169.0,0.0004]
[1728473050889,0.53884205,62170.0,62169.0,0.0004]
[1728473051182,0.57175906,62170.0,62169.0,0.0004]
[1728473051477,0.57175906,62170.0,62169.0,0.08061263]
[1728473051478,0.53051715,62170.0,62169.0,0.08061263]
[1728473051781,0.53051715,62170.0,62169.0,0.08161263]
[1728473051782,0.53951715,62170.0,62169.0,0.08161263]
[1728473051990,0.57979009,62170.0,62169.0,0.08161263]
[1728473052585,0.57979009,62170.0,62169.0,0.0014]
[1728473052876,0.57979009,62170.0,62169.0,0.0024]
[1728473053279,0.60489009,62170.0,62169.0,0.0064]
[1728473053679,0.60489009,62170.0,62169.0,0.0124]
[1728473053985,0.60589009,62170.0,62169.0,0.0124]
[1728473055490,0.72589009,62170.0,62169.0,0.0124]
[1728473056389,0.36509009,62170.0,62169.0,0.0124]
[1728473056689,0.72589009,62170.0,62169.0,0.0124]
[1728473058480,0.17909009,62170.0,62169.0,0.0124]
[1728473060997,0.0024,62170.0,62169.0,0.0124]
[1728473069327,0.0024,62170.0,62169.0,0.09261263]
[1728473070507,0.0024,62170.0,62169.0,0.20682827]
[1728473071399,0.0024,62170.0,62169.0,0.12661564]
[1728473073713,0.03349301,62170.0,62169.0,0.0124]
[1728473079613,0.03349301,62170.0,62169.0,0.1324]
[1728473080499,0.03349301,62170.0,62169.0,0.24674676]
[1728473080500,0.0024,62170.0,62169.0,0.24674676]
[1728473080905,0.0024,62170.0,62169.0,0.24674751]
[1728473084309,0.0024,62170.0,62169.0,0.24675718]
[1728473085913,0.0024,62170.0,62169.0,0.24677071]
[1728473087309,0.0024,62170.0,62169.0,0.12677071]
[1728473087506,0.0024,62170.0,62169.0,0.34291585]
[1728473088524,0.0024,62170.0,62169.0,0.24677071]
[1728473089812,0.0024,62170.0,62169.0,0.24682963]
[1728473092511,0.0024,62170.0,62169.0,0.24682969]
[1728473093617,0.0024,62170.0,62169.0,0.38322706]
[1728473094117,0.0024,62170.0,62169.0,0.24682969]
[1728473095604,0.0024,62170.0,62169.0,0.1324]
[1728473096034,0.03349302,62170.0,62169.0,0.1324]
[1728473100825,0.0024,62170.0,62169.0,0.1324]
[1728473101215,0.03349302,62170.0,62169.0,0.1324]
[1728473101915,0.04181782,62170.0,62169.0,0.1324]
[1728473102237,0.0024,62170.0,62169.0,0.1324]
[1728473102524,0.07291084,62170.0,62169.0,0.1324]
[1728473103615,0.0605,62173.0,62169.0,0.24691158]
[1728473103917,0.0605,62173.0,62170.0,0.211018]
[1728473104229,0.0605,62173.0,62172.0,0.0004]
[1728473104526,0.0605,62173.0,62172.0,0.11491158]
[1728473105723,0.0615,62173.0,62172.0,0.11491158]
[1728473105923,0.0625,62173.0,62172.0,0.11491158]
[1728473106429,0.0625,62173.0,62172.0,0.12091158]
[1728473106618,0.0615,62173.0,62172.0,0.12091158]
[1728473106819,0.0625,62173.0,62172.0,0.12691158]
[1728473114722,0.0625,62173.0,62172.0,0.12689266]
[1728473118231,0.002,62173.0,62172.0,0.12689266]
[1728473118830,0.07251101,62173.0,62172.0,0.0124]
[1728473119735,0.07251098,62173.0,62172.0,0.0124]
[1728473121428,0.07251098,62173.0,62172.0,0.0432]
[1728473122228,0.07251098,62173.0,62172.0,0.07187212]
[1728473125845,0.002,62173.0,62172.0,0.07187212]
[1728473133740,0.12191312,62173.0,62172.0,0.07187212]
[1728473134337,0.28289521,62173.0,62172.0,0.07187212]
[1728473134939,0.28289521,62173.0,62172.0,0.04107212]
[1728473139035,0.12191312,62173.0,62172.0,0.04107212]
[1728473140636,0.12191322,62173.0,62172.0,0.04107212]
[1728473140837,0.12191322,62173.0,62172.0,0.15535485]
[1728473140838,0.002,62173.0,62172.0,0.15535485]
[1728473144547,0.002,62173.0,62172.0,0.15537434]
[1728473148848,0.002,62173.0,62172.0,0.16107212]
[1728473149244,0.05140552,62173.0,62172.0,0.16107212]
[1728473149444,0.002,62173.0,62172.0,0.16107212]
[1728473151753,0.14526276,62177.0,62176.0,0.0004]
[1728473153654,0.0004,62177.0,62176.0,0.0004]
[1728473154053,0.0004,62177.0,62176.0,0.0024]
[1728473154558,0.0004,62177.0,62176.0,0.0044]
[1728473155758,0.0037,62182.0,62176.0,0.12053168]
[1728473156060,0.8759,62185.0,62181.0,0.1204]
[1728473156262,0.8712,62185.0,62184.0,0.1204]
[1728473156461,0.8712,62185.0,62184.0,0.18460897]
[1728473157752,0.8782,62185.0,62184.0,0.18560897]
[1728473158553,0.8842,62185.0,62184.0,0.18660897]
[1728473159152,0.8742,62185.0,62184.0,0.18460897]
[1728473159357,0.8782,62185.0,62184.0,0.18460897]
[1728473159559,0.8782,62185.0,62184.0,0.1204]
[1728473163755,0.99809248,62185.0,62184.0,0.1204]
[1728473164266,0.99809248,62185.0,62184.0,0.14870834]
[1728473165367,0.9486956,62185.0,62184.0,0.14870834]
[1728473165566,1.14295521,62185.0,62184.0,0.14870834]
[1728473166468,0.78215521,62185.0,62184.0,0.14870834]
[1728473166671,0.63729245,62185.0,62184.0,0.14870834]
[1728473167871,0.78215521,62185.0,62184.0,0.14870834]
[1728473169270,0.63729245,62185.0,62184.0,0.14870834]